bitfinex/quotes_ETHUSD_20240709
["timestamp","ask_amount","ask_price","bid_price","bid_amount"]
[1720540006502,0.08159239,3064.5,3063.9,5.2567]
[1720540006738,0.08159239,3064.5,3063.9,6.06807]
[1720540006943,0.08159225,3064.8,3063.9,6.06807]
[1720540007109,1.13074277,3064.7,3063.9,9.33186]
[1720540007310,1.13074277,3064.6,3064.0,1.218886]
[1720540007533,0.08159225,3064.8,3064.0,4.218886]
[1720540007739,0.08159225,3064.8,3064.1,1.3550746]
[1720540008041,1.4201,3065.3,3064.1,4.3550746]
[1720540008042,1.13067551,3064.7,3064.1,4.3550746]
[1720540008205,0.08158499,3065.2,3064.1,3.0]
[1720540008407,1.68069537,3065.1,3063.9,8.52049]
[1720540008642,1.3885084,3065.0,3063.9,11.78422]
[1720540008855,1.13069537,3064.9,3063.9,11.78422]
[1720540009149,1.13069537,3064.8,3064.2,6.12048]
[1720540009358,0.387571,3065.4,3064.6,2.857]
[1720540009519,1.13059321,3065.3,3064.6,2.857]
[1720540009721,1.21217036,3065.2,3064.6,2.857]
[1720540009921,1.13059321,3065.1,3064.6,2.857]
[1720540010145,1.13059321,3065.0,3064.6,5.2916]
[1720540010446,0.79356413,3065.6,3064.6,5.2916]
[1720540010747,1.13050333,3065.5,3064.6,5.2916]
[1720540010933,0.08155987,3066.0,3065.0,2.857]
[1720540011107,1.13041011,3065.4,3064.7,6.2629]
[1720540011308,1.13041011,3065.3,3064.7,6.2629]
[1720540011504,0.08156405,3065.8,3064.7,3.0]
[1720540011746,1.21201293,3065.7,3064.7,3.0]
[1720540011947,1.13044158,3065.6,3064.7,3.0]
[1720540012109,0.08157091,3065.5,3064.7,4.155473]
[1720540012314,1.21200081,3065.5,3064.7,3.0]
[1720540012550,1.1304299,3065.4,3064.7,3.0]
[1720540012858,1.1304299,3065.4,3064.6,2.4346]
[1720540012859,0.55,3065.3,3064.6,2.4346]
[1720540013057,1.38004917,3065.2,3064.3,3.0]
[1720540013219,1.1304299,3065.1,3064.3,3.0]
[1720540014051,1.1304299,3065.1,3064.6,2.857]
[1720540014352,1.13047167,3065.0,3064.7,3.0]
[1720540014513,0.88655193,3065.9,3064.7,3.0]
[1720540014858,1.84401999,3065.8,3064.7,3.0]
[1720540015062,1.37559095,3065.7,3064.7,3.0]
[1720540015357,1.87303585,3065.6,3064.8,2.4873]
[1720540015510,1.21204762,3065.5,3064.8,2.4873]
[1720540015715,1.13047675,3065.4,3064.8,2.4873]
[1720540016118,1.13047675,3065.5,3064.8,2.4873]
[1720540016356,1.21204777,3065.5,3064.8,2.4873]
[1720540016552,1.13047675,3065.4,3064.8,2.4873]
[1720540016939,1.13047675,3065.5,3064.8,2.4873]
[1720540017250,1.13047675,3065.5,3064.2,2.2804]
[1720540017251,1.58373433,3065.4,3064.2,2.2804]
[1720540017454,2.30183445,3065.4,3064.2,2.2804]
[1720540017622,1.29416352,3065.3,3064.2,2.2804]
[1720540017820,2.40511911,3065.2,3064.2,2.2804]
[1720540018143,1.13047675,3065.1,3064.2,5.1374]
[1720540018459,1.13047675,3065.1,3064.2,8.40084]
[1720540018641,1.13047675,3065.1,3064.3,6.26332]
[1720540018816,1.13047675,3065.1,3064.4,1.466416]
[1720540019584,1.13047675,3065.1,3064.4,4.729676]
[1720540019741,1.13047675,3065.1,3064.5,5.3314]
[1720540020073,1.13047675,3065.1,3064.6,2.857]
[1720540020270,1.13047675,3065.1,3064.7,3.0]
[1720540020636,0.34188285,3065.3,3064.7,3.0]
[1720540020837,1.13049156,3065.2,3064.8,0.5857]
[1720540021150,0.34188285,3065.3,3065.0,2.857]
[1720540021351,1.13031452,3065.2,3065.1,3.0]
[1720540021661,0.34188285,3065.3,3065.2,0.5857]
[1720540021838,1.47218566,3065.3,3065.2,0.5857]
[1720540022039,1.47218566,3065.3,3065.1,3.0]
[1720540022266,0.34188285,3065.3,3065.1,3.0]
[1720540022580,0.1135974,3066.1,3065.7,5.68402]
[1720540022886,0.1135974,3066.1,3065.9,2.857]
[1720540023337,0.1135974,3066.1,3066.0,3.0]
[1720540023538,0.1135974,3066.1,3065.8,3.0]
[1720540023780,0.1135974,3066.1,3065.7,2.4222]
[1720540023943,1.13003781,3066.0,3065.7,2.4222]
[1720540024283,0.1135974,3066.1,3065.7,2.95012]
[1720540024449,0.1135974,3066.1,3065.8,3.0]
[1720540025147,0.1135974,3066.1,3065.2,5.3771]
[1720540025148,1.13014543,3066.0,3065.2,5.3771]
[1720540025387,0.1135974,3066.1,3065.3,4.738223]
[1720540025388,1.13014543,3065.9,3065.3,4.738223]
[1720540025539,1.13014543,3066.0,3065.5,2.857]
[1720540025744,1.13014543,3066.0,3065.6,0.91192]
[1720540026051,0.1135974,3066.1,3065.6,3.91192]
[1720540026242,0.1135974,3066.1,3065.7,2.3716]
[1720540026441,0.1135974,3066.1,3065.8,0.628352]
[1720540026672,0.1135974,3066.1,3065.9,2.857]
[1720540027073,0.1135974,3066.1,3066.0,3.0]
[1720540027761,0.1135974,3066.1,3065.5,2.857]
[1720540028004,1.21171774,3066.0,3064.8,2.3716]
[1720540028184,4.8731,3065.9,3064.3,2.3716]
[1720540028385,1.37527088,3065.8,3064.3,5.2286]
[1720540028545,1.36177383,3065.6,3064.3,5.75146]
[1720540028748,1.92527089,3065.5,3063.9,2.857]
[1720540028944,1.29369685,3065.4,3063.9,2.857]
[1720540029256,1.29369685,3065.4,3063.8,8.89929]
[1720540029257,1.76174629,3065.3,3064.3,2.857]
[1720540029444,0.55,3065.5,3064.4,3.32852299]
[1720540029645,1.1305403,3065.2,3064.7,2.857]
[1720540029844,0.08156976,3065.4,3064.7,2.857]
[1720540030147,1.13043496,3065.3,3064.7,2.857]
[1720540030386,1.21200358,3065.2,3064.3,2.857]
[1720540030549,1.21200358,3065.2,3064.0,3.26368]
[1720540030550,1.68043496,3065.1,3064.0,3.26368]
[1720540030880,1.21201531,3065.0,3064.0,3.826008]
[1720540031188,1.91324898,3065.7,3064.2,3.801]
[1720540031407,1.13041746,3065.6,3064.7,7.06395]
[1720540031603,1.13041746,3065.5,3064.8,3.26279]
[1720540031746,0.1135974,3066.1,3065.0,2.3311]
[1720540031943,1.13024096,3066.0,3065.1,3.26252]
[1720540032147,0.1135974,3066.1,3065.1,3.26252]
[1720540032148,1.13024096,3065.9,3065.3,3.26226]
[1720540032405,0.1135974,3066.1,3065.3,3.26226]
[1720540032559,1.1301352,3066.0,3065.4,3.0]
[1720540032763,1.13017714,3065.9,3065.5,0.626226]
[1720540032962,0.1135974,3066.1,3065.5,0.626226]
[1720540033190,0.1135974,3066.1,3065.6,0.3626226]
[1720540033351,0.1135974,3066.1,3065.6,3.42785599]
[1720540033551,0.1135974,3066.1,3065.6,3.3626226]
[1720540033752,0.1135974,3066.1,3065.6,0.3626226]
[1720540034292,0.1135974,3066.1,3065.6,3.3626226]
[1720540034473,0.1135974,3066.1,3065.6,0.3626226]
[1720540034997,0.1135974,3066.1,3065.3,6.26231]
[1720540035180,0.1135974,3066.1,3065.5,3.262]
[1720540035364,0.1135974,3066.1,3065.6,3.0]
[1720540035791,0.1135974,3066.1,3065.4,3.0]
[1720540035994,0.1135974,3066.1,3065.3,3.7922722]
[1720540036202,0.1135974,3066.1,3065.4,3.26214]
[1720540036426,0.1135974,3066.1,3065.5,3.0]
[1720540036732,0.1135974,3066.1,3065.4,0.84526342]
[1720540036873,0.1135974,3066.1,3065.2,4.660362]
[1720540037074,1.13019727,3066.0,3065.2,4.660362]
[1720540037315,1.13019727,3065.9,3065.2,4.660362]
[1720540037522,1.13019727,3065.9,3065.2,3.801]
[1720540037685,1.21174638,3065.8,3064.6,6.0807]
[1720540037892,1.2117526,3065.7,3064.7,0.60807]
[1720540038098,1.13029904,3065.6,3064.7,0.60807]
[1720540038387,0.19515477,3066.1,3064.7,0.60807]
[1720540038388,0.19515477,3066.1,3064.8,0.668877]
[1720540038639,0.34166228,3065.7,3064.8,0.668877]
[1720540038916,0.34166228,3065.7,3064.6,6.0807]
[1720540038917,1.21188287,3065.6,3064.6,6.0807]
[1720540039115,1.13031957,3065.5,3064.1,3.801]
[1720540039333,0.6315633,3065.6,3064.2,0.706462]
[1720540039334,1.5518838,3065.4,3064.2,0.706462]
[1720540039471,1.8441199,3065.3,3064.2,0.706462]
[1720540039786,2.74004919,3065.2,3064.0,2.4606]
[1720540039990,1.84427332,3065.1,3064.0,2.4606]
[1720540040194,1.84427332,3065.1,3064.1,3.26351]
[1720540040195,1.13056223,3065.0,3064.1,3.26351]
[1720540040404,1.13056905,3064.9,3064.2,4.373411]
[1720540040604,1.13056905,3064.8,3064.2,4.373411]
[1720540040923,1.36420025,3065.4,3064.3,0.7636921]
[1720540041140,1.68047423,3065.3,3064.3,0.7636921]
[1720540041424,1.37567674,3065.2,3064.3,0.7636921]
[1720540041573,1.48602785,3065.2,3064.2,4.373411]
[1720540041791,2.65835527,3065.1,3064.0,2.4606]
[1720540042128,3.28993982,3065.0,3064.0,2.4606]
[1720540042340,0.16368079,3064.9,3064.0,2.4606]
[1720540042502,1.13069236,3064.8,3064.1,0.54606]
[1720540042834,1.44644545,3065.3,3064.3,3.26338]
[1720540042987,1.36487506,3065.5,3064.4,3.0]
[1720540043198,1.29403255,3065.4,3064.5,0.952668]
[1720540043505,0.34166228,3065.7,3064.3,3.06524991]
[1720540043506,1.13048174,3065.3,3064.3,3.06524991]
[1720540043702,1.36487506,3065.7,3064.7,3.26289]
[1720540043703,0.08156238,3065.6,3064.7,3.26289]
[1720540043901,1.70609383,3065.8,3064.7,3.26289]
[1720540043902,1.13039071,3065.5,3064.9,2.3246]
[1720540044103,1.36487506,3065.9,3064.9,2.3246]
[1720540044433,1.13031648,3065.8,3064.9,5.58728]
[1720540044645,1.13031648,3065.7,3065.0,4.2176409]
[1720540044949,1.13031648,3065.6,3065.1,3.26247]
[1720540045102,1.47847246,3066.1,3065.2,3.0]
[1720540045295,1.13018399,3066.0,3065.2,3.0]
[1720540045494,1.13018399,3066.0,3065.3,0.72429621]
[1720540045709,1.13019301,3065.9,3065.3,0.72429621]
[1720540045913,1.13019301,3065.8,3065.3,0.72429621]
[1720540046124,0.08156138,3065.7,3065.2,3.0]
[1720540046326,0.08156138,3065.7,3064.9,2.3246]
[1720540046327,1.13019301,3065.6,3064.9,5.3246]
[1720540046544,1.13019301,3065.8,3065.0,3.5276489]
[1720540046719,1.13019301,3065.9,3065.1,3.88522489]
[1720540047544,1.13019301,3065.9,3065.1,7.14773489]
[1720540047837,0.16332316,3065.8,3065.2,0.74128238]
[1720540048033,1.13019301,3065.7,3065.2,0.74128238]
[1720540048207,1.13019301,3065.9,3065.2,0.74128238]
[1720540048722,1.13019301,3065.9,3065.0,6.26258]
[1720540048723,1.52821197,3065.8,3065.0,3.0]
[1720540049038,1.36487506,3065.5,3064.8,3.0]
[1720540049356,1.29392732,3065.4,3064.5,3.0]
[1720540049558,1.37549724,3065.3,3064.6,0.33422328]
[1720540049739,1.13042764,3065.2,3064.4,9.86864281]
[1720540049910,1.13042764,3065.1,3064.5,4.48435428]
[1720540050109,0.08156992,3065.3,3064.6,3.0]
[1720540050340,1.13043128,3065.2,3064.7,0.74843543]
[1720540050567,1.13043128,3065.1,3064.7,0.74843543]
[1720540050747,1.36571244,3065.4,3064.7,0.74843543]
[1720540051015,1.13037974,3065.3,3064.8,0.37484354]
[1720540051373,1.13037974,3065.2,3064.8,3.37484354]
[1720540051662,1.13037974,3065.3,3064.9,0.7924279]
[1720540051867,1.13036068,3065.5,3064.9,0.7924279]
[1720540052022,1.1303446,3065.4,3064.9,0.7924279]
[1720540052355,1.13033474,3065.3,3064.8,3.37484354]
[1720540052561,1.29386445,3065.2,3064.8,3.0]
[1720540052716,1.29387559,3065.1,3064.5,3.0]
[1720540052916,1.13033474,3065.0,3064.5,3.886981]
[1720540053239,1.36612295,3065.2,3064.6,0.7150201]
[1720540053420,1.36612295,3065.2,3064.3,2.3433]
[1720540053421,1.29410447,3065.1,3064.4,3.0]
[1720540053621,1.13051872,3065.0,3064.5,0.860667]
[1720540053854,1.36612295,3065.2,3064.5,0.860667]
[1720540054065,1.13042884,3065.1,3064.5,0.860667]
[1720540054350,1.36612295,3065.4,3064.6,0.7123877]
[1720540054553,1.29386312,3065.3,3064.6,0.7123877]
[1720540054761,1.13039463,3065.3,3064.6,6.9753577]
[1720540054964,1.13039463,3065.2,3064.7,4.91091847]
[1720540055260,1.36612295,3065.5,3064.8,3.0]
[1720540055416,0.16342571,3065.4,3064.8,4.18862762]
[1720540055611,1.29377507,3065.4,3064.8,4.18862762]
[1720540055915,1.29380611,3065.3,3064.8,4.18862762]
[1720540056118,1.37538518,3065.2,3064.3,2.3433]
[1720540056365,1.36612295,3065.0,3064.3,2.3433]
[1720540056548,1.13034936,3064.9,3064.3,5.3433]
[1720540056714,1.13034936,3065.0,3064.3,5.3433]
[1720540056921,0.16359496,3064.9,3064.3,5.3433]
[1720540057171,2.49647231,3064.8,3064.3,3.0]
[1720540057462,1.13034936,3064.7,3064.0,3.0]
[1720540057668,1.13034936,3064.8,3064.1,0.626381]
[1720540057862,0.16369378,3064.7,3064.1,0.626381]
[1720540058181,1.13034936,3064.6,3064.1,0.626381]
[1720540058882,0.08157872,3064.9,3064.0,6.26369]
[1720540059185,1.13055068,3064.8,3064.0,6.26369]
[1720540059394,1.13055068,3064.7,3064.0,3.0]
[1720540059562,1.13055068,3064.6,3063.9,3.0]
[1720540059767,2.49765351,3064.7,3063.9,3.0]
[1720540059970,1.13055068,3064.5,3063.9,4.251491]
[1720540060161,1.36710283,3064.8,3063.9,7.515241]
[1720540060471,2.66145347,3064.7,3064.0,1.3229151]
[1720540060703,1.29435064,3064.6,3064.0,1.3229151]
[1720540060881,1.29440433,3064.5,3064.0,1.3229151]
[1720540061063,1.13065079,3064.4,3064.0,1.3229151]
[1720540061236,2.49775362,3064.6,3064.0,1.3229151]
[1720540061435,1.3759934,3064.5,3063.8,2.4501]
[1720540061633,1.29441115,3064.4,3063.8,2.4501]
[1720540061870,1.2944789,3064.3,3063.8,2.4501]
[1720540062036,1.36710283,3064.4,3063.8,2.4501]
[1720540062232,1.29460082,3064.3,3063.8,2.4501]
[1720540062585,1.13077391,3064.2,3063.8,2.4501]
[1720540062734,1.13077391,3064.3,3063.8,2.4501]
[1720540062935,0.1638977,3064.2,3063.4,2.3067]
[1720540063171,1.13077391,3064.1,3063.4,3.243918]
[1720540063666,1.21237053,3064.1,3063.4,2.3067]
[1720540063971,1.13077391,3064.0,3063.4,2.3067]
[1720540065359,1.13077391,3064.0,3063.3,3.0]
[1720540065360,1.29498011,3063.9,3063.3,3.0]
[1720540065563,1.13095672,3063.8,3063.3,0.3]
[1720540065765,1.44867129,3064.1,3063.0,6.26476]
[1720540065975,1.13094222,3064.0,3063.2,3.801]
[1720540066147,7.41,3064.1,3063.3,3.0]
[1720540066349,7.41,3064.1,3063.6,2.4913]
[1720540066648,1.13084877,3064.0,3063.6,2.4913]
[1720540066847,7.41,3064.1,3063.6,2.4913]
[1720540067075,7.41,3064.1,3063.6,3.066858]
[1720540067291,7.41,3064.1,3063.7,3.0]
[1720540067495,12.15,3064.4,3063.7,3.0]
[1720540067678,1.21238619,3064.3,3063.7,3.0]
[1720540067876,1.13078917,3064.2,3063.6,2.4913]
[1720540068390,0.08159702,3064.3,3063.6,2.4913]
[1720540068750,1.13075048,3064.2,3063.6,2.4913]
[1720540069093,1.13081704,3064.1,3063.6,2.4913]
[1720540069272,0.08159702,3064.3,3063.6,2.4913]
[1720540069603,1.13078235,3064.2,3063.6,3.04043]
[1720540069888,12.15,3064.4,3063.7,3.0]
[1720540070186,12.15,3064.4,3063.8,0.604043]
[1720540070355,1.1307344,3064.3,3063.8,0.604043]
[1720540070554,12.15,3064.4,3063.7,3.0]
[1720540070896,1.1307741,3064.3,3063.7,3.0]
[1720540071546,1.21236838,3064.4,3063.7,3.0]
[1720540071794,1.1307741,3064.3,3063.7,3.0]
[1720540072031,0.08159428,3064.4,3063.7,3.604043]
[1720540072223,1.13081833,3064.3,3063.7,3.604043]
[1720540072622,0.08159428,3064.4,3063.7,3.604043]
[1720540073491,1.13079059,3064.3,3063.7,3.604043]
[1720540073711,0.08159428,3064.4,3063.7,3.604043]
[1720540074020,0.08159428,3064.4,3063.8,0.6644473]
[1720540074021,1.1307922,3064.3,3063.8,0.6644473]
[1720540074186,0.08159428,3064.4,3063.8,0.6644473]
[1720540074389,1.13080356,3064.3,3063.8,0.6644473]
[1720540074583,0.08159428,3064.4,3063.8,0.6644473]
[1720540074784,0.08159428,3064.4,3063.7,3.0]
[1720540076986,1.44707228,3064.4,3063.6,2.4913]
[1720540077185,1.365478,3064.2,3063.6,2.4913]
[1720540077385,1.365478,3064.2,3062.9,2.851]
[1720540077386,0.08160356,3064.1,3063.1,2.4424]
[1720540077698,1.365478,3063.9,3063.1,2.4424]
[1720540078021,0.24571232,3063.8,3063.1,2.4424]
[1720540078236,0.24571225,3063.7,3063.1,2.4424]
[1720540078427,0.41341577,3063.7,3062.9,2.851]
[1720540078728,0.41341577,3063.7,3062.7,2.4292]
[1720540079097,1.77853808,3063.7,3062.7,2.4292]
[1720540079300,1.77853808,3063.7,3062.7,2.99865]
[1720540079517,0.16419855,3063.6,3062.7,2.99865]
[1720540079693,0.08161627,3063.5,3062.7,2.4292]
[1720540080136,1.44673858,3063.5,3062.7,2.4292]
[1720540080336,0.71429256,3063.4,3062.3,2.4412]
[1720540080547,0.24591917,3063.3,3062.4,0.326541]
[1720540080833,0.08162307,3063.4,3062.5,3.804]
[1720540081042,0.08162307,3063.4,3062.5,4.0807741]
[1720540081225,1.36523642,3063.6,3062.5,4.0807741]
[1720540081534,1.36523642,3063.7,3062.6,0.44073151]
[1720540081739,1.36523642,3063.8,3062.7,2.3602]
[1720540081948,8.77523642,3063.9,3062.8,0.97843305]
[1720540082101,0.55,3063.8,3062.8,3.97843305]
[1720540082301,0.55,3063.8,3062.9,0.63386331]
[1720540082302,0.16412685,3063.7,3062.9,0.63386331]
[1720540082737,0.55,3063.8,3062.9,0.63386331]
[1720540082936,8.77523642,3063.9,3063.0,3.86929262]
[1720540083126,7.41,3063.9,3063.2,2.326]
[1720540083866,0.08159835,3063.8,3063.2,2.326]
[1720540083999,0.08159835,3063.8,3063.1,3.0]
[1720540084200,0.88568348,3063.7,3062.9,2.4171]
[1720540084427,8.77523642,3063.9,3063.0,3.26475]
[1720540084638,1.13097853,3063.8,3063.1,3.0]
[1720540084843,1.13097853,3063.7,3063.2,0.626475]
[1720540085044,1.13097853,3063.8,3063.2,0.626475]
[1720540085245,7.41,3063.9,3063.3,0.3626475]
[1720540085540,7.41,3063.9,3063.3,3.3626475]
[1720540085718,1.13085447,3063.8,3063.3,3.3626475]
[1720540085912,7.41,3063.9,3063.4,0.39891225]
[1720540085913,1.13085447,3063.7,3063.4,0.39891225]
[1720540086100,7.41,3063.9,3063.1,3.0]
[1720540086101,1.21245579,3063.8,3063.1,3.0]
[1720540086302,1.21245579,3063.8,3062.9,2.4171]
[1720540086303,1.13085447,3063.7,3062.9,2.4171]
[1720540087140,1.13085447,3063.7,3063.1,3.26461]
[1720540087342,7.41,3063.9,3063.2,6.26447]
[1720540087502,1.13085346,3063.8,3063.2,3.0]
[1720540087706,1.13094365,3063.7,3063.1,3.62211]
[1720540087942,1.13094365,3063.7,3063.2,1.069082]
[1720540088163,7.41,3063.9,3063.1,3.0]
[1720540088164,1.13098006,3063.6,3063.1,3.0]
[1720540088311,1.13098006,3063.5,3063.1,3.0]
[1720540088509,1.88014026,3063.7,3062.9,2.4171]
[1720540088746,1.13109547,3063.6,3062.9,2.4171]
[1720540088953,1.13109547,3063.5,3062.9,2.4171]
[1720540089254,0.08161129,3063.8,3062.9,2.4171]
[1720540089462,1.13097726,3063.7,3063.0,0.24171]
[1720540089656,1.13097726,3063.6,3063.0,3.24171]
[1720540089951,1.13097726,3063.5,3063.0,3.0]
[1720540090116,1.13097726,3063.7,3062.9,2.4171]
[1720540090943,0.88566616,3063.8,3062.6,3.0]
[1720540091150,2.49627777,3063.6,3062.6,3.0]
[1720540091338,2.74205792,3063.5,3062.5,6.2299]
[1720540091652,1.29529083,3063.4,3062.5,6.85289]
[1720540091811,1.21275153,3063.3,3062.5,6.85289]
[1720540092010,1.13112867,3063.2,3062.5,6.85289]
[1720540092206,1.13112867,3063.2,3062.5,3.04889]
[1720540092449,1.13112867,3063.2,3062.5,2.4259]
[1720540093236,1.13112867,3063.3,3062.5,6.2299]
[1720540093436,0.08162221,3063.4,3062.6,3.0]
[1720540093437,1.13112867,3063.2,3062.6,3.0]
[1720540093608,1.13112867,3063.3,3062.6,3.62299]
[1720540093941,1.13112867,3063.2,3062.6,3.62299]
[1720540094162,1.13112867,3063.2,3062.7,0.985289]
[1720540094314,0.08162213,3063.5,3062.7,0.985289]
[1720540094517,1.13108295,3063.4,3062.7,0.985289]
[1720540094850,0.08162213,3063.5,3062.7,0.985289]
[1720540094851,1.13108295,3063.3,3062.7,0.985289]
[1720540095060,0.08162213,3063.5,3062.7,0.985289]
[1720540095061,1.13108295,3063.4,3062.8,0.4608279]
[1720540095215,1.13108295,3063.3,3062.8,0.4608279]
[1720540095522,7.41,3063.6,3062.8,0.4608279]
[1720540095723,1.13107424,3063.5,3062.8,0.4608279]
[1720540095959,1.13107424,3063.5,3062.9,0.47111369]
[1720540096621,1.13107424,3063.5,3062.9,3.47111369]
[1720540096823,1.13107424,3063.5,3062.9,0.47111369]
[1720540097556,7.41,3063.6,3063.1,2.2735]
[1720540097758,1.13096222,3063.5,3063.1,5.87443437]
[1720540097921,7.41,3063.6,3063.1,5.87443437]
[1720540098322,1.13098264,3063.5,3063.1,5.2735]
[1720540098629,1.13100431,3063.4,3063.2,3.0]
[1720540098927,1.13100431,3063.3,3063.0,3.0]
[1720540099126,0.85410043,3063.4,3063.0,3.0]
[1720540099327,1.13100431,3063.3,3062.7,2.4933]
[1720540099554,1.21262256,3063.3,3062.7,2.4933]
[1720540099720,1.29524785,3063.2,3062.7,2.4933]
[1720540099922,1.13100431,3063.1,3062.7,2.4933]
[1720540100155,1.13100431,3063.2,3062.7,2.4933]
[1720540100457,1.13100431,3063.2,3062.6,3.0]
[1720540100458,1.29528986,3063.1,3062.6,3.0]
[1720540100619,1.13100431,3063.0,3062.6,3.0]
[1720540100951,1.36608418,3063.2,3062.6,3.0]
[1720540100952,1.13129621,3062.9,3062.6,3.0]
[1720540101118,1.13129621,3062.8,3062.6,3.0]
[1720540101320,1.13129621,3063.1,3062.6,3.0]
[1720540101559,0.16432203,3063.0,3062.6,3.0]
[1720540101856,1.13129621,3062.9,3062.6,3.0]
[1720540102279,1.13129621,3063.0,3062.6,3.5852]
[1720540102566,1.70897255,3063.4,3062.6,3.5852]
[1720540102567,1.36608418,3063.4,3062.6,3.5852]
[1720540102742,1.29538456,3063.3,3062.7,0.64372]
[1720540103083,1.44770643,3063.5,3062.7,0.64372]
[1720540103084,1.29541534,3063.2,3062.7,0.64372]
[1720540103378,1.13117686,3063.1,3062.8,0.422892]
[1720540103578,1.13117686,3063.0,3062.8,0.422892]
[1720540103728,1.36608418,3063.4,3062.8,0.422892]
[1720540103935,1.29537201,3063.3,3062.8,0.422892]
[1720540104128,1.53030884,3063.3,3062.8,0.422892]
[1720540104436,1.29541946,3063.2,3062.8,0.422892]
[1720540104675,1.1311948,3063.1,3062.8,0.422892]
[1720540104874,1.36608418,3063.5,3062.9,5.3057]
[1720540105169,7.41,3063.6,3063.0,0.8993502]
[1720540105170,1.13103702,3063.4,3063.0,0.8993502]
[1720540105546,1.13103702,3063.3,3063.0,0.8993502]
[1720540105752,1.13103702,3063.2,3063.1,0.62050502]
[1720540106067,1.13103709,3063.2,3063.1,0.62050502]
[1720540106238,8.77608418,3063.6,3063.1,0.62050502]
[1720540106439,1.2950941,3063.5,3063.0,0.8993502]
[1720540106649,1.2950941,3063.4,3063.0,0.8993502]
[1720540106850,1.13102178,3063.3,3063.1,0.06528706]
[1720540107061,1.13102178,3063.5,3063.2,2.852]
[1720540107270,1.13096545,3063.4,3063.3,3.0]
[1720540107473,1.13100384,3063.4,3063.3,3.0]
[1720540107837,1.13100384,3063.4,3062.9,8.71857]
[1720540107838,1.47275836,3063.4,3062.9,8.71857]
[1720540108041,1.13103222,3063.3,3063.0,0.5728592]
[1720540108355,1.13103222,3063.3,3063.0,3.5728592]
[1720540108549,1.13103222,3063.3,3063.0,3.0]
[1720540108745,1.13103222,3063.3,3062.9,5.4537]
[1720540108944,1.13103222,3063.3,3063.2,2.852]
[1720540109170,1.13103222,3063.3,3063.2,5.852]
[1720540110478,1.13103383,3063.3,3063.2,5.852]
[1720540110654,1.13103383,3063.3,3063.2,6.4372]
[1720540111174,1.29513526,3063.3,3062.8,2.852]
[1720540111339,2.66385664,3063.2,3062.5,2.2802]
[1720540111539,1.36872138,3063.0,3062.5,2.2802]
[1720540111850,1.29513526,3062.9,3062.5,2.2802]
[1720540112046,1.13103383,3062.8,3062.5,2.2802]
[1720540112379,1.36872138,3063.1,3062.5,3.119966]
[1720540112540,2.66422911,3063.0,3062.5,3.119966]
[1720540112735,1.29550773,3062.9,3062.6,3.0]
[1720540112944,1.36872138,3062.7,3062.1,2.3673]
[1720540113149,1.36872138,3062.5,3061.5,2.72906667]
[1720540113349,2.66421734,3062.4,3061.6,3.86572767]
[1720540113642,1.1314187,3062.3,3061.6,3.86572767]
[1720540113955,1.1314187,3062.2,3061.6,3.86572767]
[1720540114151,1.1314187,3062.3,3061.7,0.94467943]
[1720540114469,1.36898012,3062.4,3061.7,0.94467943]
[1720540114470,1.1314187,3062.2,3061.7,0.94467943]
[1720540114773,1.2959933,3062.1,3061.5,2.72906667]
[1720540115074,1.1314187,3062.0,3061.5,2.72906667]
[1720540115263,1.1314187,3062.1,3061.6,0.92618667]
[1720540115464,1.13154809,3062.0,3061.6,0.92618667]
[1720540115636,1.36898012,3062.3,3061.7,0.69216133]
[1720540115836,1.29612472,3062.2,3061.7,0.69216133]
[1720540116142,1.29612472,3062.1,3061.5,2.3673]
[1720540116364,1.71122515,3062.4,3061.5,2.3673]
[1720540116365,1.13155741,3062.0,3061.5,2.3673]
[1720540116672,1.36898012,3062.3,3061.5,5.930673]
[1720540117085,7.41,3062.6,3061.5,5.930673]
[1720540117086,2.66514258,3062.2,3061.5,5.930673]
[1720540117288,7.41,3062.6,3061.5,9.197013]
[1720540117471,1.36820892,3062.3,3061.7,2.4375]
[1720540117678,1.13155936,3062.2,3061.7,5.4375]
[1720540117980,1.36820892,3062.4,3061.8,0.96234413]
[1720540118183,1.29606027,3062.3,3061.8,3.96234413]
[1720540118382,1.71026115,3062.5,3061.8,3.96234413]
[1720540118383,1.36820892,3062.5,3061.8,3.96234413]
[1720540118683,1.13146883,3062.4,3061.8,3.96234413]
[1720540118847,1.13146883,3062.3,3061.8,7.22838413]
[1720540119046,1.13146883,3062.4,3061.8,7.22838413]
[1720540119246,1.13146883,3062.4,3061.9,0.96658841]
[1720540119499,1.13146883,3062.4,3061.8,6.26604]
[1720540120297,1.13149647,3062.3,3061.8,6.26604]
[1720540120460,1.36820892,3062.5,3061.8,6.26604]
[1720540120659,1.29599505,3062.4,3061.8,6.26604]
[1720540120855,1.13149074,3062.3,3061.8,7.463011]
[1720540121051,1.13149074,3062.4,3061.8,3.0]
[1720540121258,0.16452692,3062.3,3061.8,3.0]
[1720540121469,1.13149074,3062.2,3061.7,5.4375]
[1720540121795,8.77820892,3062.6,3061.9,3.26587]
[1720540122101,1.29585369,3062.5,3062.1,3.26573]
[1720540122400,8.77820892,3062.6,3062.0,3.26581]
[1720540122607,8.77820892,3062.6,3061.9,0.598125]
[1720540122608,1.29586819,3062.5,3061.9,0.598125]
[1720540122774,8.77820892,3062.6,3062.0,3.26573]
[1720540123097,1.13142356,3062.5,3062.1,3.26571]
[1720540123260,0.34172391,3062.5,3062.1,6.26571]
[1720540124062,0.34172391,3062.5,3062.2,2.4432]
[1720540124261,0.34172391,3062.5,3062.2,3.74195285]
[1720540124987,0.34172391,3062.5,3062.4,3.26541]
[1720540125186,0.34172391,3062.5,3062.4,6.26541]
[1720540125404,19.56,3062.9,3062.4,6.26541]
[1720540125603,19.90171268,3062.9,3062.5,3.0]
[1720540126397,0.34171268,3062.9,3062.5,3.626541]
[1720540126597,0.34171268,3062.9,3062.6,3.26519]
[1720540126804,0.34171268,3062.9,3062.7,3.0]
[1720540127916,0.34171268,3062.9,3062.8,2.2866]
[1720540128076,7.41,3063.3,3063.2,3.26455]
[1720540128281,7.41,3063.8,3063.7,3.26402]
[1720540128663,7.41,3063.8,3063.7,9.52804]